[Event "Late-Titled-Tuesday-Blitz-August-29-2023"]
[Site "Chess.com"]
[Date "2023.08.29"]
[Round "2"]
[White "Mops_2004"]
[Black "dennisodessa"]
[Result "0-1"]
[WhiteElo "2771"]
[BlackElo "2546"]
[TimeControl "180+1"]
[EndTime "14:18:29 PDT"]
[Termination "dennisodessa won by resignation"]

1. Nf3 {[%clk 0:03:00.9]} 1... Nf6 {[%clk 0:02:59.9]} 2. g3 {[%clk 0:03:01]}
2... b6 {[%clk 0:03:00.4]} 3. Bg2 {[%clk 0:03:00.7]} 3... Bb7 {[%clk 0:03:01.3]}
4. O-O {[%clk 0:03:00.7]} 4... e6 {[%clk 0:03:02.2]} 5. c4 {[%clk 0:03:00.2]}
5... Be7 {[%clk 0:03:03.1]} 6. Nc3 {[%clk 0:03:00.3]} 6... O-O {[%clk
0:03:03.9]} 7. Re1 {[%clk 0:03:00.3]} 7... Ne4 {[%clk 0:03:04.1]} 8. Nxe4 {[%clk
0:02:59.9]} 8... Bxe4 {[%clk 0:03:05]} 9. d3 {[%clk 0:03:00.1]} 9... Bb7 {[%clk
0:03:05.8]} 10. e4 {[%clk 0:03:00.3]} 10... c5 {[%clk 0:03:05.6]} 11. d4 {[%clk
0:03:00]} 11... cxd4 {[%clk 0:03:06.5]} 12. Nxd4 {[%clk 0:03:00.1]} 12... d6
{[%clk 0:03:07.4]} 13. b3 {[%clk 0:02:59.5]} 13... a6 {[%clk 0:03:06]} 14. a4
{[%clk 0:02:59.4]} 14... Nd7 {[%clk 0:03:05.6]} 15. Ba3 {[%clk 0:02:57.8]} 15...
Qc7 {[%clk 0:03:05.5]} 16. Ra2 {[%clk 0:02:57.4]} 16... Rfd8 {[%clk 0:03:06]}
17. Bb4 {[%clk 0:02:55]} 17... Nc5 {[%clk 0:03:04.2]} 18. Rd2 {[%clk 0:02:51.8]}
18... Rac8 {[%clk 0:03:02]} 19. h4 {[%clk 0:02:51.2]} 19... Qb8 {[%clk
0:02:59.8]} 20. f4 {[%clk 0:02:38.4]} 20... Qa8 {[%clk 0:02:59.5]} 21. Rde2
{[%clk 0:02:32.1]} 21... Bf8 {[%clk 0:02:42.4]} 22. h5 {[%clk 0:02:30.5]} 22...
e5 {[%clk 0:02:33.5]} 23. Nf5 {[%clk 0:02:25.4]} 23... g6 {[%clk 0:02:33.1]} 24.
Nh4 {[%clk 0:02:14.9]} 24... exf4 {[%clk 0:02:20.4]} 25. gxf4 {[%clk 0:02:14.3]}
25... Be7 {[%clk 0:02:21.1]} 26. Nf3 {[%clk 0:02:13.7]} 26... Nxe4 {[%clk
0:02:13.9]} 27. Nd4 {[%clk 0:01:57]} 27... f5 {[%clk 0:02:13.1]} 28. Ne6 {[%clk
0:01:36.5]} 28... Re8 {[%clk 0:02:00.6]} 29. Bxe4 {[%clk 0:01:20.2]} 29... Bxe4
{[%clk 0:01:59.7]} 30. Qd4 {[%clk 0:01:20.1]} 30... Kf7 {[%clk 0:01:44.7]} 31.
Ng5+ {[%clk 0:00:56.3]} 31... Bxg5 {[%clk 0:01:43.2]} 32. fxg5 {[%clk
0:00:57.2]} 32... Re6 {[%clk 0:01:38.9]} 33. h6 {[%clk 0:00:53.8]} 33... Rg8
{[%clk 0:01:26.2]} 34. Qxb6 {[%clk 0:00:38.4]} 34... Qb8 {[%clk 0:01:20.5]} 35.
a5 {[%clk 0:00:34]} 35... d5 {[%clk 0:01:13.5]} 36. Qc5 {[%clk 0:00:14.8]} 36...
Rc8 {[%clk 0:00:21.4]} 37. Qd4 {[%clk 0:00:11.9]} 37... Qg3+ {[%clk 0:00:19.6]}
38. Kf1 {[%clk 0:00:11.9]} 38... Bg2+ {[%clk 0:00:20.3]} 39. Kg1 {[%clk
0:00:09.6]} 39... Bf3+ {[%clk 0:00:18.4]} 40. Kf1 {[%clk 0:00:08.7]} 40... Bxe2+
{[%clk 0:00:18.1]} 41. Rxe2 {[%clk 0:00:08.3]} 41... Qf3+ {[%clk 0:00:17.1]} 42.
Qf2 {[%clk 0:00:07.7]} 42... Qxe2+ {[%clk 0:00:16.7]} 43. Qxe2 {[%clk
0:00:07.7]} 43... Rxe2 {[%clk 0:00:17.6]} 44. Kxe2 {[%clk 0:00:08.5]} 44... dxc4
{[%clk 0:00:18.5]} 0-1

[Event "Late-Titled-Tuesday-Blitz-August-29-2023"]
[Site "Chess.com"]
[Date "2023.08.29"]
[Round "2"]
[White "fastestmindalive"]
[Black "Noki102"]
[Result "1-0"]
[WhiteElo "2745"]
[BlackElo "2445"]
[TimeControl "180+1"]
[EndTime "14:18:29 PDT"]
[Termination "fastestmindalive won on time"]

1. e4 {[%clk 0:03:00.9]} 1... e5 {[%clk 0:02:59.9]} 2. Nf3 {[%clk 0:03:00.5]}
2... Nc6 {[%clk 0:02:59.9]} 3. d4 {[%clk 0:02:59]} 3... exd4 {[%clk 0:03:00]} 4.
Bc4 {[%clk 0:02:59.7]} 4... Nf6 {[%clk 0:02:59.9]} 5. e5 {[%clk 0:03:00.2]} 5...
d5 {[%clk 0:03:00]} 6. Bb5 {[%clk 0:03:00.6]} 6... Ne4 {[%clk 0:02:58]} 7. Nxd4
{[%clk 0:03:00.8]} 7... Bc5 {[%clk 0:02:58.6]} 8. Be3 {[%clk 0:02:50.9]} 8...
O-O {[%clk 0:02:55.6]} 9. Bxc6 {[%clk 0:02:50.5]} 9... bxc6 {[%clk 0:02:51.3]}
10. Nd2 {[%clk 0:02:50.5]} 10... Ba6 {[%clk 0:02:22.6]} 11. Nxe4 {[%clk
0:02:35.8]} 11... dxe4 {[%clk 0:02:21.3]} 12. Nxc6 {[%clk 0:02:34.5]} 12...
Qxd1+ {[%clk 0:01:23.9]} 13. Rxd1 {[%clk 0:02:35.4]} 13... Bxe3 {[%clk
0:01:23.3]} 14. fxe3 {[%clk 0:02:36.3]} 14... Rfe8 {[%clk 0:01:21.3]} 15. Rd7
{[%clk 0:02:21.6]} 15... Bb5 {[%clk 0:00:38.8]} 16. Rxc7 {[%clk 0:02:21.5]}
16... Bxc6 {[%clk 0:00:39.2]} 17. Rxc6 {[%clk 0:02:22.4]} 17... Rxe5 {[%clk
0:00:39.8]} 18. Ke2 {[%clk 0:02:16.9]} 18... Rg5 {[%clk 0:00:37.5]} 19. g3
{[%clk 0:02:16.3]} 19... h5 {[%clk 0:00:33.3]} 20. Rc4 {[%clk 0:02:06.2]} 20...
h4 {[%clk 0:00:29.5]} 21. Rxe4 {[%clk 0:02:03.9]} 21... hxg3 {[%clk 0:00:29.2]}
22. hxg3 {[%clk 0:02:04.8]} 22... g6 {[%clk 0:00:10.6]} 23. g4 {[%clk
0:02:03.5]} 23... Rc8 {[%clk 0:00:09.4]} 24. c3 {[%clk 0:02:02.9]} 24... Rb5
{[%clk 0:00:09.2]} 25. g5 {[%clk 0:01:14.1]} 25... Rxb2+ {[%clk 0:00:08.1]} 26.
Kf3 {[%clk 0:01:14.6]} 26... Rc5 {[%clk 0:00:02]} 27. Rg1 {[%clk 0:00:31.8]}
27... Rf5+ {[%clk 0:00:02.1]} 28. Kg4 {[%clk 0:00:32]} 28... Rbb5 {[%clk
0:00:02.5]} 29. Kh4 {[%clk 0:00:31.9]} 29... Rf3 {[%clk 0:00:01.9]} 30. a4
{[%clk 0:00:26.2]} 30... Ra5 {[%clk 0:00:01.5]} 31. Rd1 {[%clk 0:00:23.8]} 31...
Kg7 {[%clk 0:00:01.9]} 32. Rd7 {[%clk 0:00:22.8]} 32... Rf2 {[%clk 0:00:01.7]}
33. c4 {[%clk 0:00:14.8]} 33... Rg2 {[%clk 0:00:01.7]} 34. Rf4 {[%clk 0:00:14]}
34... Rgxg5 {[%clk 0:00:01.1]} 35. Rfxf7+ {[%clk 0:00:13.7]} 35... Kg8 {[%clk
0:00:01.7]} 36. Rg7+ {[%clk 0:00:12.8]} 36... Kf8 {[%clk 0:00:02.2]} 37. Rdf7+
{[%clk 0:00:13.2]} 37... Ke8 {[%clk 0:00:02.7]} 38. Rxa7 {[%clk 0:00:13.5]}
38... Rh5+ {[%clk 0:00:01.2]} 39. Kg4 {[%clk 0:00:13.9]} 39... Rhg5+ {[%clk
0:00:01.1]} 40. Kf4 {[%clk 0:00:14.2]} 40... Rgf5+ {[%clk 0:00:01.5]} 41. Ke4
{[%clk 0:00:14.6]} 41... Rae5+ {[%clk 0:00:01.6]} 42. Kd4 {[%clk 0:00:14.9]} 1-0

[Event "Late-Titled-Tuesday-Blitz-August-29-2023"]
[Site "Chess.com"]
[Date "2023.08.29"]
[Round "2"]
[White "ChEsper99"]
[Black "colegiodemadrid"]
[Result "0-1"]
[WhiteElo "2126"]
[BlackElo "2443"]
[TimeControl "180+1"]
[EndTime "14:18:31 PDT"]
[Termination "colegiodemadrid won on time"]

1. e4 {[%clk 0:03:00.9]} 1... e5 {[%clk 0:02:59.7]} 2. Nf3 {[%clk 0:03:00.2]}
2... Nc6 {[%clk 0:03:00.2]} 3. Bc4 {[%clk 0:02:54.6]} 3... Bc5 {[%clk
0:03:00.1]} 4. d3 {[%clk 0:02:54]} 4... Nf6 {[%clk 0:03:00.2]} 5. O-O {[%clk
0:02:51.9]} 5... O-O {[%clk 0:03:00.3]} 6. h3 {[%clk 0:02:48.2]} 6... d6 {[%clk
0:02:57.5]} 7. c3 {[%clk 0:02:47.7]} 7... h6 {[%clk 0:02:57.2]} 8. Re1 {[%clk
0:02:46.4]} 8... Bb6 {[%clk 0:02:57.4]} 9. Bb3 {[%clk 0:02:39.7]} 9... Ne7
{[%clk 0:02:56.8]} 10. Be3 {[%clk 0:02:33.1]} 10... Bxe3 {[%clk 0:02:51.3]} 11.
Rxe3 {[%clk 0:02:34]} 11... Ng6 {[%clk 0:02:50.6]} 12. d4 {[%clk 0:02:34.3]}
12... Qe7 {[%clk 0:02:49.4]} 13. Bc2 {[%clk 0:02:30]} 13... b6 {[%clk
0:02:34.6]} 14. Nbd2 {[%clk 0:02:22.1]} 14... Nf4 {[%clk 0:02:27.9]} 15. Nf1
{[%clk 0:02:16.4]} 15... c5 {[%clk 0:02:21.9]} 16. Ng3 {[%clk 0:02:09.6]} 16...
g6 {[%clk 0:02:12.8]} 17. Ne2 {[%clk 0:01:53.1]} 17... N6h5 {[%clk 0:02:04.5]}
18. Nxf4 {[%clk 0:01:49.9]} 18... Nxf4 {[%clk 0:02:05.4]} 19. Kh2 {[%clk
0:01:32]} 19... h5 {[%clk 0:02:02.9]} 20. Qd2 {[%clk 0:01:19]} 20... Kg7 {[%clk
0:02:01.7]} 21. Rd1 {[%clk 0:01:13.2]} 21... Ba6 {[%clk 0:01:46.8]} 22. dxe5
{[%clk 0:01:09.5]} 22... dxe5 {[%clk 0:01:46.8]} 23. Qd7 {[%clk 0:01:02.3]}
23... Rfe8 {[%clk 0:01:31.9]} 24. Rd2 {[%clk 0:00:43.5]} 24... f6 {[%clk
0:01:13.6]} 25. g3 {[%clk 0:00:41]} 25... Ne6 {[%clk 0:01:11.7]} 26. Bb3 {[%clk
0:00:34.7]} 26... Nf8 {[%clk 0:01:10.4]} 27. Qxe7+ {[%clk 0:00:34.1]} 27... Rxe7
{[%clk 0:01:10.9]} 28. Re1 {[%clk 0:00:31.4]} 28... c4 {[%clk 0:01:04.1]} 29.
Ba4 {[%clk 0:00:27]} 29... Ne6 {[%clk 0:01:02.3]} 30. Red1 {[%clk 0:00:23.5]}
30... Nc5 {[%clk 0:00:56]} 31. Bc6 {[%clk 0:00:23.6]} 31... Rc8 {[%clk
0:00:54.5]} 32. Bd5 {[%clk 0:00:16.9]} 32... b5 {[%clk 0:00:53.1]} 33. b3 {[%clk
0:00:12.2]} 33... Rcc7 {[%clk 0:00:43.2]} 34. h4 {[%clk 0:00:10.1]} 34... Bc8
{[%clk 0:00:30.4]} 35. bxc4 {[%clk 0:00:10.1]} 35... bxc4 {[%clk 0:00:29.8]} 36.
Rb1 {[%clk 0:00:10.7]} 36... Bg4 {[%clk 0:00:23.6]} 37. Kg2 {[%clk 0:00:09.5]}
37... Nd3 {[%clk 0:00:20.2]} 38. Rb8 {[%clk 0:00:09]} 38... f5 {[%clk
0:00:14.8]} 39. exf5 {[%clk 0:00:07.7]} 39... gxf5 {[%clk 0:00:15.7]} 40. Bxc4
{[%clk 0:00:07.2]} 40... e4 {[%clk 0:00:12.2]} 41. Rg8+ {[%clk 0:00:02.2]} 41...
Kh6 {[%clk 0:00:10.9]} 42. Rh8+ {[%clk 0:00:02.3]} 42... Rh7 {[%clk 0:00:10.6]}
43. Rxh7+ {[%clk 0:00:01.1]} 43... Rxh7 {[%clk 0:00:10]} 0-1

[Event "Late-Titled-Tuesday-Blitz-August-29-2023"]
[Site "Chess.com"]
[Date "2023.08.29"]
[Round "2"]
[White "IamSchrodingersCat"]
[Black "Eternauta2400"]
[Result "1/2-1/2"]
[WhiteElo "2549"]
[BlackElo "2830"]
[TimeControl "180+1"]
[EndTime "14:18:32 PDT"]
[Termination "Game drawn by repetition"]

1. e4 {[%clk 0:03:00.9]} 1... c6 {[%clk 0:03:00]} 2. Nc3 {[%clk 0:03:00.6]} 2...
d5 {[%clk 0:03:00.9]} 3. Nf3 {[%clk 0:03:00.8]} 3... dxe4 {[%clk 0:03:01.4]} 4.
Nxe4 {[%clk 0:03:01]} 4... Nf6 {[%clk 0:03:02.3]} 5. Qe2 {[%clk 0:03:00.9]} 5...
Nxe4 {[%clk 0:03:02.2]} 6. Qxe4 {[%clk 0:03:01.8]} 6... Nd7 {[%clk 0:03:02.8]}
7. Bc4 {[%clk 0:03:01.8]} 7... Nf6 {[%clk 0:03:03.7]} 8. Ne5 {[%clk 0:03:02.2]}
8... e6 {[%clk 0:03:04.4]} 9. Qe2 {[%clk 0:03:02.6]} 9... b5 {[%clk 0:03:05]}
10. Bb3 {[%clk 0:03:02.4]} 10... Qc7 {[%clk 0:03:04.6]} 11. d4 {[%clk
0:03:01.9]} 11... Bd6 {[%clk 0:03:04.4]} 12. O-O {[%clk 0:03:01.5]} 12... O-O
{[%clk 0:03:03.7]} 13. Re1 {[%clk 0:03:01.1]} 13... a5 {[%clk 0:03:02.6]} 14. c3
{[%clk 0:02:58.7]} 14... a4 {[%clk 0:03:01.6]} 15. Bc2 {[%clk 0:02:59]} 15... h6
{[%clk 0:02:53.4]} 16. Qf3 {[%clk 0:02:56.9]} 16... Nd5 {[%clk 0:02:32]} 17. Qg4
{[%clk 0:02:03.8]} 17... f5 {[%clk 0:02:30]} 18. Qh5 {[%clk 0:01:57.2]} 18...
Bb7 {[%clk 0:02:19]} 19. a3 {[%clk 0:01:40.2]} 19... Rae8 {[%clk 0:02:16]} 20.
Nf3 {[%clk 0:00:58.2]} 20... c5 {[%clk 0:02:12.9]} 21. Bd3 {[%clk 0:00:51.9]}
21... c4 {[%clk 0:02:09.8]} 22. Bc2 {[%clk 0:00:51.9]} 22... Nf6 {[%clk
0:02:06.5]} 23. Qh3 {[%clk 0:00:50.3]} 23... Be4 {[%clk 0:02:02.1]} 24. Bxe4
{[%clk 0:00:49.4]} 24... Nxe4 {[%clk 0:02:03]} 25. Nd2 {[%clk 0:00:39.9]} 25...
Ng5 {[%clk 0:02:01.2]} 26. Qh5 {[%clk 0:00:39.6]} 26... Qf7 {[%clk 0:01:58.8]}
27. Qxf7+ {[%clk 0:00:38.8]} 27... Nxf7 {[%clk 0:01:59.5]} 28. Nf1 {[%clk
0:00:36]} 28... Nd8 {[%clk 0:01:55.6]} 29. Bd2 {[%clk 0:00:33.7]} 29... Nc6
{[%clk 0:01:55.6]} 30. f4 {[%clk 0:00:28.5]} 30... Kf7 {[%clk 0:01:55.3]} 31.
Re2 {[%clk 0:00:28]} 31... Ne7 {[%clk 0:01:54.7]} 32. Rae1 {[%clk 0:00:26.3]}
32... Nd5 {[%clk 0:01:54.2]} 33. g3 {[%clk 0:00:27]} 33... Re7 {[%clk
0:01:46.9]} 34. Ne3 {[%clk 0:00:27]} 34... Nf6 {[%clk 0:01:45.9]} 35. d5 {[%clk
0:00:24.3]} 35... Nxd5 {[%clk 0:01:45.7]} 36. Nxd5 {[%clk 0:00:20.4]} 36... exd5
{[%clk 0:01:46.6]} 37. Rxe7+ {[%clk 0:00:19.1]} 37... Bxe7 {[%clk 0:01:47.5]}
38. Be3 {[%clk 0:00:19.7]} 38... Bf6 {[%clk 0:01:45.2]} 39. Bd4 {[%clk
0:00:18.1]} 39... Rb8 {[%clk 0:01:04.4]} 40. Bxf6 {[%clk 0:00:13.9]} 40... gxf6
{[%clk 0:01:05.3]} 41. Rd1 {[%clk 0:00:09.6]} 41... Ke6 {[%clk 0:01:05.5]} 42.
Kf2 {[%clk 0:00:10.1]} 42... Kd6 {[%clk 0:01:06]} 43. Ke3 {[%clk 0:00:07.5]}
43... Re8+ {[%clk 0:01:05.9]} 44. Kd2 {[%clk 0:00:06.8]} 44... Kc5 {[%clk
0:01:05.6]} 45. Rf1 {[%clk 0:00:05]} 45... h5 {[%clk 0:01:04.2]} 46. Rg1 {[%clk
0:00:04.6]} 46... d4 {[%clk 0:01:04]} 47. cxd4+ {[%clk 0:00:05.1]} 47... Kxd4
{[%clk 0:01:04.9]} 48. Rf1 {[%clk 0:00:05.4]} 48... Kc5 {[%clk 0:01:03.8]} 49.
Rf2 {[%clk 0:00:04.3]} 49... Re4 {[%clk 0:01:03.2]} 50. Kc2 {[%clk 0:00:04.7]}
50... b4 {[%clk 0:01:02.6]} 51. axb4+ {[%clk 0:00:04.8]} 51... Kxb4 {[%clk
0:01:03.5]} 52. Rd2 {[%clk 0:00:04.8]} 52... Re1 {[%clk 0:01:00.9]} 53. Rf2
{[%clk 0:00:04.8]} 53... Ra1 {[%clk 0:00:57.1]} 54. Re2 {[%clk 0:00:04.5]} 54...
a3 {[%clk 0:00:57.5]} 55. bxa3+ {[%clk 0:00:04]} 55... Rxa3 {[%clk 0:00:58.4]}
56. Re6 {[%clk 0:00:02.4]} 56... Ra2+ {[%clk 0:00:58.2]} 57. Kc1 {[%clk
0:00:02.6]} 57... Rxh2 {[%clk 0:00:58.7]} 58. Rxf6 {[%clk 0:00:02.6]} 58... Kc3
{[%clk 0:00:53.5]} 59. Kb1 {[%clk 0:00:02.2]} 59... Rh1+ {[%clk 0:00:45.3]} 60.
Ka2 {[%clk 0:00:02.4]} 60... Rh2+ {[%clk 0:00:46.2]} 61. Kb1 {[%clk 0:00:02.1]}
61... Kb3 {[%clk 0:00:45.5]} 62. Rb6+ {[%clk 0:00:01.6]} 62... Ka3 {[%clk
0:00:45.9]} 63. Ra6+ {[%clk 0:00:01.8]} 63... Kb4 {[%clk 0:00:46.1]} 64. Rb6+
{[%clk 0:00:02.7]} 64... Kc3 {[%clk 0:00:46.3]} 65. Rf6 {[%clk 0:00:03]} 1/2-1/2

[Event "Late-Titled-Tuesday-Blitz-August-29-2023"]
[Site "Chess.com"]
[Date "2023.08.29"]
[Round "2"]
[White "Zlatan56"]
[Black "Nf3c5"]
[Result "0-1"]
[WhiteElo "2914"]
[BlackElo "2616"]
[TimeControl "180+1"]
[EndTime "14:18:34 PDT"]
[Termination "Nf3c5 won on time"]

1. d4 {[%clk 0:03:00.9]} 1... Nf6 {[%clk 0:02:59]} 2. Nf3 {[%clk 0:03:00.9]}
2... e6 {[%clk 0:02:57.7]} 3. Bg5 {[%clk 0:03:00.4]} 3... h6 {[%clk 0:02:54.9]}
4. Bh4 {[%clk 0:02:59.7]} 4... d6 {[%clk 0:02:55.2]} 5. Nbd2 {[%clk 0:02:58.3]}
5... g5 {[%clk 0:02:53.7]} 6. Bg3 {[%clk 0:02:57.5]} 6... Nh5 {[%clk 0:02:54.6]}
7. c3 {[%clk 0:02:56.2]} 7... f5 {[%clk 0:02:35.8]} 8. e3 {[%clk 0:02:54.6]}
8... Nd7 {[%clk 0:02:24.5]} 9. Bc4 {[%clk 0:02:42]} 9... Ndf6 {[%clk 0:02:22.6]}
10. O-O {[%clk 0:02:39.9]} 10... Qe7 {[%clk 0:02:18.2]} 11. a4 {[%clk
0:02:31.9]} 11... Bg7 {[%clk 0:02:14.6]} 12. a5 {[%clk 0:02:25]} 12... Bd7
{[%clk 0:01:57.1]} 13. a6 {[%clk 0:02:20.5]} 13... b6 {[%clk 0:01:57.2]} 14. Qe2
{[%clk 0:02:08.7]} 14... O-O {[%clk 0:01:55.5]} 15. Bb5 {[%clk 0:01:53.1]} 15...
c6 {[%clk 0:01:28.5]} 16. Bd3 {[%clk 0:01:49.2]} 16... Rad8 {[%clk 0:01:06]} 17.
Nc4 {[%clk 0:01:47.8]} 17... Bc8 {[%clk 0:01:04]} 18. Nfd2 {[%clk 0:01:34.5]}
18... Nxg3 {[%clk 0:00:50]} 19. hxg3 {[%clk 0:01:35.4]} 19... e5 {[%clk
0:00:49.8]} 20. dxe5 {[%clk 0:01:16.7]} 20... dxe5 {[%clk 0:00:50.7]} 21. e4
{[%clk 0:01:17]} 21... f4 {[%clk 0:00:47.1]} 22. gxf4 {[%clk 0:01:16.2]} 22...
gxf4 {[%clk 0:00:45.1]} 23. Nf3 {[%clk 0:01:16.6]} 23... Ng4 {[%clk 0:00:41]}
24. Rfd1 {[%clk 0:01:15.7]} 24... Qf7 {[%clk 0:00:36.8]} 25. Ncd2 {[%clk
0:01:07.7]} 25... Qh5 {[%clk 0:00:29.5]} 26. Nf1 {[%clk 0:01:08]} 26... Kh8
{[%clk 0:00:28]} 27. Bc4 {[%clk 0:01:07.5]} 27... Bf6 {[%clk 0:00:23.7]} 28. Bb3
{[%clk 0:00:53.1]} 28... Be7 {[%clk 0:00:22.2]} 29. Rxd8 {[%clk 0:00:42.3]}
29... Rxd8 {[%clk 0:00:20.7]} 30. Rd1 {[%clk 0:00:43.2]} 30... Rf8 {[%clk
0:00:20.6]} 31. Ne1 {[%clk 0:00:21.7]} 31... b5 {[%clk 0:00:14.5]} 32. Nd3
{[%clk 0:00:20]} 32... Bxa6 {[%clk 0:00:13.2]} 33. f3 {[%clk 0:00:19.6]} 33...
Nf6 {[%clk 0:00:10.1]} 34. Ra1 {[%clk 0:00:18.9]} 34... Bc8 {[%clk 0:00:07]} 35.
Rxa7 {[%clk 0:00:19.7]} 35... Bd6 {[%clk 0:00:07.1]} 36. Qf2 {[%clk 0:00:15.9]}
36... Qg6 {[%clk 0:00:04.4]} 37. Qb6 {[%clk 0:00:12.6]} 37... Bh3 {[%clk
0:00:03.9]} 38. Ne1 {[%clk 0:00:12.1]} 38... Nd7 {[%clk 0:00:02.4]} 39. Rxd7
{[%clk 0:00:04.1]} 39... Bxd7 {[%clk 0:00:03.3]} 40. Qb7 {[%clk 0:00:03.3]}
40... Qg7 {[%clk 0:00:03.3]} 41. Kh1 {[%clk 0:00:01.5]} 41... Bc5 {[%clk
0:00:03.4]} 0-1

[Event "Late-Titled-Tuesday-Blitz-August-29-2023"]
[Site "Chess.com"]
[Date "2023.08.29"]
[Round "2"]
[White "DeTimmerman"]
[Black "Sacbutt"]
[Result "1-0"]
[WhiteElo "2694"]
[BlackElo "2233"]
[TimeControl "180+1"]
[EndTime "14:18:36 PDT"]
[Termination "DeTimmerman won on time"]

1. e4 {[%clk 0:03:00.9]} 1... c5 {[%clk 0:02:57.2]} 2. Nf3 {[%clk 0:03:00.9]}
2... d6 {[%clk 0:02:57.6]} 3. d4 {[%clk 0:03:00.8]} 3... cxd4 {[%clk 0:02:58.5]}
4. Nxd4 {[%clk 0:03:00.6]} 4... Nf6 {[%clk 0:02:59.2]} 5. Nc3 {[%clk 0:03:00.3]}
5... a6 {[%clk 0:03:00]} 6. Rg1 {[%clk 0:02:48.4]} 6... e5 {[%clk 0:02:49.4]} 7.
Nb3 {[%clk 0:02:42.4]} 7... h5 {[%clk 0:02:40.8]} 8. h3 {[%clk 0:02:28.1]} 8...
h4 {[%clk 0:02:26.2]} 9. Be3 {[%clk 0:02:19.5]} 9... Be6 {[%clk 0:02:22.3]} 10.
Qd2 {[%clk 0:02:16.9]} 10... Nbd7 {[%clk 0:02:21.9]} 11. f4 {[%clk 0:02:13.2]}
11... Be7 {[%clk 0:02:16.4]} 12. f5 {[%clk 0:02:12]} 12... Bxb3 {[%clk 0:02:16]}
13. cxb3 {[%clk 0:01:50.7]} 13... Nc5 {[%clk 0:01:58]} 14. Bxc5 {[%clk
0:01:48.8]} 14... dxc5 {[%clk 0:01:58.3]} 15. O-O-O {[%clk 0:01:49.7]} 15... Qd4
{[%clk 0:01:53.1]} 16. Bc4 {[%clk 0:01:44.2]} 16... b5 {[%clk 0:01:45.6]} 17.
Bd5 {[%clk 0:01:44]} 17... Qxd2+ {[%clk 0:01:37.6]} 18. Kxd2 {[%clk 0:01:22.8]}
18... Rd8 {[%clk 0:01:26.5]} 19. Ke2 {[%clk 0:01:23.2]} 19... O-O {[%clk
0:01:16.4]} 20. Kf3 {[%clk 0:01:15.5]} 20... Nh5 {[%clk 0:01:09.7]} 21. Bb7
{[%clk 0:01:11.5]} 21... b4 {[%clk 0:00:53.7]} 22. Nd5 {[%clk 0:01:11.3]} 22...
Bg5 {[%clk 0:00:52.3]} 23. a3 {[%clk 0:00:50.1]} 23... bxa3 {[%clk 0:00:50.7]}
24. bxa3 {[%clk 0:00:51]} 24... g6 {[%clk 0:00:47.8]} 25. Bxa6 {[%clk
0:00:38.1]} 25... gxf5 {[%clk 0:00:45.9]} 26. exf5 {[%clk 0:00:32.7]} 26... Nf4
{[%clk 0:00:43.4]} 27. Nxf4 {[%clk 0:00:29.3]} 27... Bxf4 {[%clk 0:00:44.3]} 28.
Bc4 {[%clk 0:00:29.3]} 28... Kg7 {[%clk 0:00:39.8]} 29. a4 {[%clk 0:00:26.5]}
29... Kf6 {[%clk 0:00:34.3]} 30. a5 {[%clk 0:00:26.4]} 30... Kxf5 {[%clk
0:00:34.1]} 31. a6 {[%clk 0:00:26.8]} 31... Ra8 {[%clk 0:00:33.6]} 32. Rd7
{[%clk 0:00:16.1]} 32... e4+ {[%clk 0:00:33.6]} 33. Ke2 {[%clk 0:00:16]} 33...
f6 {[%clk 0:00:31]} 34. Rf1 {[%clk 0:00:16.3]} 34... Rad8 {[%clk 0:00:26.6]} 35.
Rxd8 {[%clk 0:00:13.2]} 35... Rxd8 {[%clk 0:00:26.6]} 36. a7 {[%clk 0:00:14.1]}
36... Ra8 {[%clk 0:00:26.7]} 37. Ra1 {[%clk 0:00:14.5]} 37... Ke5 {[%clk
0:00:23.9]} 38. Ra6 {[%clk 0:00:11.7]} 38... Kd4 {[%clk 0:00:18.2]} 39. Bb5
{[%clk 0:00:11.7]} 39... f5 {[%clk 0:00:07.1]} 40. Bc6 {[%clk 0:00:11.7]} 40...
Rd8 {[%clk 0:00:07.1]} 41. a8=Q {[%clk 0:00:11.5]} 41... Rxa8 {[%clk 0:00:07.7]}
42. Rxa8 {[%clk 0:00:12]} 42... Bd6 {[%clk 0:00:07.8]} 43. Re8 {[%clk
0:00:10.9]} 43... Kc3 {[%clk 0:00:06.7]} 44. Bd5 {[%clk 0:00:09.5]} 44... Bg3
{[%clk 0:00:05.5]} 45. Bg8 {[%clk 0:00:09.4]} 45... Kd4 {[%clk 0:00:04.5]} 46.
Bh7 {[%clk 0:00:09]} 46... f4 {[%clk 0:00:03.4]} 47. Rxe4+ {[%clk 0:00:08.6]}
1-0